fUST/lending_fUST_20260226
["ID","MTS","AMOUNT","RATE_DAILY","PERIOD"]
[406696370,1772093447074,-318.6,0.00021129,2]
[406696371,1772093447084,-3000.0,0.0002113,2]
[406696372,1772093447094,-715.0,0.00021136,2]
[406696373,1772093447103,-3000.0,0.0002114,2]
[406696374,1772093447113,-3000.0,0.0002115,2]
[406696375,1772093447123,-3000.0,0.0002116,2]
[406696376,1772093447132,-3000.0,0.0002117,2]
[406696377,1772093447141,-2000.0,0.00021176,7]
[406696378,1772093447151,-3000.0,0.0002118,2]
[406696379,1772093447160,-3000.0,0.0002119,2]
[406696380,1772093447170,-3000.0,0.000212,2]
[406696381,1772093447179,-3000.0,0.0002121,2]
[406696382,1772093447188,-3000.0,0.0002122,2]
[406696383,1772093447198,-3000.0,0.0002123,2]
[406696384,1772093447207,-3000.0,0.0002124,2]
[406696385,1772093447217,-3000.0,0.0002125,2]
[406696386,1772093447227,-3000.0,0.0002126,2]
[406696387,1772093447237,-2982.60894464,0.00021265,2]
[406696388,1772093447246,-3000.0,0.0002127,2]
[406696389,1772093447256,-3000.0,0.0002128,2]
[406696390,1772093447265,-5225.858382,0.0002129,2]
[406696391,1772093447275,-3027.49368103,0.00021292,48]
[406696392,1772093447285,-179.74835231,0.00021309,2]
[406696393,1772093447294,-1092.47302665,0.00021313,2]
[406696394,1772093447304,-2147.10916082,0.00021338,10]
[406696395,1772093447315,-547.7280467,0.00021339,46]
[406696396,1772093447325,-689.08511609,0.00021339,46]
[406696397,1772093447335,-715.0,0.00021471,2]
[406696398,1772093447345,-637.16754,0.00021473,7]
[406696399,1772093447355,-377.0,0.0002149,2]
[406696400,1772093447364,-1045.88014475,0.000215,2]
[406696401,1772093447375,-12937.88613699,0.000215,2]
[406696402,1772093447384,-244.28754087,0.0002154,48]
[406696403,1772093447395,-305.86171464,0.0002154,48]
[406696404,1772093447405,-400.9512445,0.0002154,48]
[406696405,1772093447415,-3027.49368103,0.00021639,50]
[406696406,1772093447425,-996.0,0.00021696,10]
[406696407,1772093447434,-575.513887,0.00021703,2]
[406696408,1772093447444,-2000.0,0.00021709,2]
[406696409,1772093447454,-2000.0,0.00021709,2]
[406696410,1772093447464,-2000.0,0.00021709,2]
[406696411,1772093447475,-2000.0,0.00021709,2]
[406696412,1772093447484,-2000.0,0.00021709,2]
[406696413,1772093447495,-2000.0,0.00021709,2]
[406696414,1772093447504,-2000.0,0.00021709,2]
[406696415,1772093447514,-1240.0,0.00021709,2]
[406696416,1772093447523,-500.0,0.00021709,2]
[406696417,1772093447533,-500.0,0.00021709,2]
[406696418,1772093447543,-500.0,0.00021709,2]
[406696419,1772093447553,-500.0,0.00021709,2]
[406696420,1772093447562,-500.0,0.00021709,2]
[406696421,1772093447571,-500.0,0.00021709,2]
[406696422,1772093447580,-500.0,0.00021709,2]
[406696423,1772093447591,-500.0,0.00021709,2]
[406696424,1772093447600,-500.0,0.00021709,2]
[406696425,1772093447610,-500.0,0.00021709,2]
[406696426,1772093447619,-500.0,0.00021709,2]
[406696427,1772093447628,-500.0,0.00021709,2]
[406696428,1772093447638,-500.0,0.00021709,2]
[406696429,1772093447648,-500.0,0.00021709,2]
[406696430,1772093447658,-500.0,0.00021709,2]
[406696431,1772093447668,-606.0,0.00021709,2]
[406696432,1772093447677,-1000.0,0.00021737,10]
[406696433,1772093447687,-2000.0,0.00021765,7]
[406696434,1772093447696,-547.7280467,0.00021809,50]
[406696435,1772093447707,-689.08511609,0.00021809,50]
[406696436,1772093447716,-3092.96547559,0.00021813,2]
[406696437,1772093447727,-178.6818,0.00021908,2]
[406696438,1772093447736,-517.8812,0.00021908,2]
[406696439,1772093447746,-517.8812,0.00021908,2]
[406696440,1772093447755,-517.8812,0.00021908,2]
[406696441,1772093447765,-517.8812,0.00021908,2]
[406696442,1772093447775,-517.8812,0.00021908,2]
[406696443,1772093447784,-582.1952,0.00021908,2]
[406696444,1772093447794,-750.6195,0.00021908,2]
[406696445,1772093447804,-2000.0,0.00021917,2]
[406696446,1772093447814,-192.821314,0.00021918,2]
[406696447,1772093447823,-1027.063376,0.00021918,2]
[406696448,1772093447832,-1027.063376,0.00021918,2]
[406696449,1772093447841,-1027.063376,0.00021918,2]
[406696450,1772093447851,-1027.063376,0.00021918,2]
[406696451,1772093447860,-1027.063376,0.00021918,2]
[406696452,1772093447869,-1027.063376,0.00021918,2]
[406696453,1772093447879,-1027.063376,0.00021918,2]
[406696454,1772093447892,-1027.063376,0.00021918,2]
[406696455,1772093447901,-1027.063376,0.00021918,2]
[406696456,1772093447910,-1027.063376,0.00021918,2]
[406696457,1772093447920,-1027.063376,0.00021918,2]
[406696458,1772093447930,-1027.063376,0.00021918,2]
[406696459,1772093447940,-1027.063376,0.00021918,2]
[406696460,1772093447949,-1027.063376,0.00021918,2]
[406696461,1772093447962,-1027.063376,0.00021918,2]
[406696462,1772093447971,-1027.063376,0.00021918,2]
[406696463,1772093447981,-1027.063376,0.00021918,2]
[406696464,1772093447991,-1027.063376,0.00021918,2]
[406696465,1772093448000,-1027.063376,0.00021918,2]
[406696466,1772093448010,-1027.063374,0.00021918,2]
[406696467,1772093448019,-156.0,0.00021918,2]
[406696468,1772093448029,-156.0,0.00021918,2]
[406696469,1772093448038,-150.0,0.00021918,2]
[406696470,1772093448047,-150.0,0.00021918,2]
[406696471,1772093448056,-500.0,0.00021957,2]
[406696472,1772093448066,-572.89763015,0.0002196,10]
[406696473,1772093448075,-3027.49368103,0.00021986,52]
[406696474,1772093448084,-151.0,0.00021986,2]
[406696475,1772093448094,-1405.05808328,0.00022,2]
[406696476,1772093448103,-141042.73,0.00022,2]
[406696477,1772093448112,-1000.0,0.00022,30]
[406696478,1772093448122,-957.0,0.00022026,10]
[406696479,1772093448131,-2147.10916082,0.00022102,11]
[406696480,1772093448140,-715.0,0.00022111,2]
[406696481,1772093448150,-421.19100705,0.00022122,2]
[406696482,1772093448159,-2181.0,0.00022146,2]
[406696483,1772093448168,-1386.0,0.00022146,2]
[406696484,1772093448178,-637.0,0.00022146,2]
[406696485,1772093448342,-185.651,0.00022146,2]
[406696486,1772093448352,-430.0,0.00022146,2]
[406696487,1772093448362,-728.0,0.00022146,2]
[406696488,1772093448372,-547.7280467,0.00022278,54]
[406696489,1772093448381,-689.08511609,0.00022278,54]
[406696490,1772093448391,-151.0,0.00022301,2]
[406696491,1772093448402,-158.0,0.00022323,7]
[406696492,1772093448412,-3027.49368103,0.00022333,54]
[406696493,1772093448421,-2000.0,0.00022353,7]
[406696494,1772093448430,-3207.40519818,0.00022361,2]
[406696495,1772093448439,-156.0,0.00022381,2]
[406696496,1772093448448,-300.0,0.00022466,2]
[406696497,1772093448457,-200.0,0.00022466,2]
[406696498,1772093448467,-575.513887,0.00022484,2]
[406696499,1772093448479,-220.41812884,0.00022491,120]
[406696500,1772093448488,-151.0,0.00022491,2]
[406696501,1772093448499,-305.0,0.00022491,120]
[406696502,1772093448508,-183.0,0.00022491,120]
[406696503,1772093448518,-183.0,0.00022491,120]
[406696504,1772093448527,-2292.0,0.00022491,120]
[406696505,1772093448537,-611.0,0.00022491,120]
[406696506,1772093448546,-367.0,0.00022491,120]
[406696507,1772093448555,-220.0,0.00022491,120]
[406696508,1772093448564,-1039.80385972,0.000225,2]
[406696509,1772093448574,-193.98680395,0.00022513,56]
[406696510,1772093448583,-244.28754087,0.00022513,56]
[406696511,1772093448592,-305.86171464,0.00022513,56]
[406696512,1772093448601,-400.9512445,0.00022513,56]
[406696513,1772093448611,-1152.0,0.0002259,2]
[406696514,1772093448621,-3027.49368103,0.0002268,57]
[406696515,1772093448631,-500.0,0.00022731,2]
[406696516,1772093448641,-547.7280467,0.00022748,57]
[406696517,1772093448650,-689.08511609,0.00022748,57]
[406696518,1772093448659,-764.0,0.00022782,2]
[406696519,1772093448669,-150.0,0.00022782,2]
[406696520,1772093448678,-269.0,0.00022782,2]
[406696521,1772093448687,-500.0,0.00022836,2]
[406696522,1772093448697,-2147.10916082,0.00022866,13]
[406696523,1772093448706,-3326.07919052,0.00022909,2]
[406696524,1772093448716,-4609.0,0.00022916,2]
[406696525,1772093448725,-2000.0,0.00022941,7]
[406696526,1772093448735,-2865.47017157,0.00023,120]
[406696527,1772093448744,-1000.0,0.00023,2]
[406696528,1772093448753,-190.0,0.00023,7]
[406696529,1772093448762,-450.0,0.00023014,2]
[406696530,1772093448772,-315.37820353,0.00023014,2]
[406696531,1772093448781,-3027.49368103,0.00023028,59]
[406696532,1772093448790,-500.89,0.000231,7]
[406696533,1772093448800,-151.0,0.000231,10]
[406696534,1772093448809,-715.0,0.00023123,3]
[406696535,1772093448818,-547.7280467,0.00023218,61]
[406696536,1772093448827,-689.08511609,0.00023218,61]
[406696537,1772093448836,-190.0,0.00023288,7]
[406696538,1772093448846,-3262.36991528,0.00023364,2]
[406696539,1772093448855,-3027.49368103,0.00023375,61]
[406696540,1772093448864,-3449.14412057,0.00023457,2]
[406696541,1772093448873,-6406.45999071,0.00023487,63]
[406696542,1772093448884,-244.28754087,0.00023487,63]
[406696543,1772093448895,-305.86171464,0.00023487,63]
[406696544,1772093448904,-400.9512445,0.00023487,63]
[406696545,1772093448913,-866.0,0.00023499,7]
[406696546,1772093448923,-2500.0,0.000235,120]
[406696547,1772093448932,-4709.12826671,0.00023513,57]
[406696548,1772093448941,-2000.0,0.00023529,7]
[406696549,1772093448951,-500.0,0.0002355,30]
[406696550,1772093448962,-175.0,0.0002355,2]
[406696551,1772093448972,-600.0,0.00023562,2]
[406696552,1772093448981,-1811.52424345,0.00023574,2]
[406696553,1772093451350,-148.25845627,0.00019073,2]
[406696554,1772093451811,-101.74154373,0.00019073,2]
[406696555,1772093451822,-250.0,0.00019073,2]
[406696556,1772093451832,-250.0,0.00019073,2]
[406696557,1772093451841,-151.0,0.00019073,2]
[406696558,1772093451851,-250.0,0.00019073,2]
[406696559,1772093451860,-250.0,0.00019073,2]
[406696560,1772093451870,-151.0,0.00019073,2]
[406696561,1772093451882,-250.0,0.00019073,2]
[406696562,1772093451892,-250.0,0.00019073,2]
[406696563,1772093451902,-151.0,0.00019073,2]
[406696564,1772093451911,-250.0,0.00019073,2]
[406696565,1772093451920,-195.25845627,0.00019073,2]
[406696566,1772093707284,-501.1691,0.00012937,2]
[406696567,1772093719148,-501.1691,0.00012937,2]
[406696568,1772093720013,-501.1691,0.00012937,2]
[406696569,1772093721932,-501.1691,0.00012937,2]
[406696571,1772094033718,5000.0,0.00012001,2]
[406696572,1772094041708,3004.6764,0.00012001,2]
[406696573,1772094057492,4122.16214266,0.00012001,2]
[406696598,1772094217474,250.0,0.00011729,2]
[406696624,1772094333185,-592.0,0.00012171,2]
[406696625,1772094333207,-344.85426544,0.00012232,2]
[406696626,1772094333227,-232.2,0.00012329,2]
[406696627,1772094333247,-78.66501784,0.00012329,2]
[406696628,1772094352087,-114.83498216,0.00012329,2]
[406696629,1772094352108,-141.96292899,0.00012329,2]
[406696630,1772094435102,-19.28707101,0.00012329,2]
[406696631,1772094435136,-451.36852758,0.00012329,2]
[406696632,1772094440101,-172.24409383,0.00012329,2]
[406696633,1772094449240,-182.63737859,0.00012329,2]
[406696634,1772094449264,-171.7084023,0.00012418,2]
[406696635,1772094449285,-347.31323833,0.00012473,2]
[406696636,1772094449503,-300.0,0.00012537,2]
[406696637,1772094449534,-300.0,0.00012538,2]
[406696638,1772094449555,-274.0,0.00012538,2]
[406696639,1772094449575,-300.0,0.00012538,2]
[406696640,1772094449597,-192.33567244,0.00012538,2]
[406696641,1772094451222,-1007.66432756,0.00012538,2]
[406696642,1772094451275,-1462.92640755,0.00012539,2]
[406696643,1772094451332,-300.0,0.00012539,2]
[406696644,1772094451392,-300.0,0.00012539,2]
[406696645,1772094451452,-300.0,0.00012539,2]
[406696646,1772094451521,-300.0,0.00012539,2]
[406696647,1772094451578,-300.0,0.00012539,2]
[406696648,1772094451634,-300.0,0.00012539,2]
[406696649,1772094451692,-300.0,0.00012539,2]
[406696650,1772094451748,-300.0,0.00012539,2]
[406696651,1772094451806,-129.55540796,0.00012539,2]
[406696652,1772094504282,168.9333,6.586e-05,2]
[406696653,1772094506499,168.9333,9.28e-05,2]
[406696654,1772094506691,168.9333,0.00011975,2]
[406696660,1772094553081,-511.6900305,0.00012037,2]
[406696661,1772094553104,-300.0,0.00012538,2]
[406696662,1772094553129,-170.44459204,0.00012539,2]
[406696663,1772094553154,-300.0,0.00012539,2]
[406696664,1772094553179,-300.0,0.00012539,2]
[406696665,1772094553203,-300.0,0.00012539,2]
[406696666,1772094553232,-300.0,0.00012539,2]
[406696667,1772094553264,-300.0,0.00012539,2]
[406696668,1772094553289,-300.0,0.00012539,2]
[406696669,1772094553312,-337.95718013,0.0001254,2]
[406696670,1772094553336,-600.0,0.00012789,2]
[406696671,1772094553357,-175.154599,0.00012989,2]
[406696672,1772094553378,-150.0,0.00012991,2]
[406696673,1772094553399,-3504.67445338,0.00012992,2]
[406696674,1772094553420,-2289.79376865,0.00013028,2]
[406696675,1772094553441,-168.81,0.000132,2]
[406696676,1772094553461,-500.0,0.00013269,2]
[406696677,1772094553481,-500.0,0.00013269,2]
[406696678,1772094553502,-500.0,0.00013269,2]
[406696679,1772094553527,-500.0,0.00013269,2]
[406696680,1772094553549,-500.0,0.00013269,2]
[406696681,1772094553573,-500.0,0.00013269,2]
[406696682,1772094553598,-500.0,0.00013269,2]
[406696683,1772094553621,-500.0,0.00013269,2]
[406696684,1772094553645,-500.0,0.00013269,2]
[406696685,1772094553665,-341.5239057,0.00013269,2]
[406696686,1772094553685,-585.3587487,0.00013269,2]
[406696687,1772094553709,-500.0,0.00013269,2]
[406696688,1772094553733,-500.0,0.00013269,2]
[406696689,1772094553758,-500.0,0.00013269,2]
[406696690,1772094553782,-500.0,0.00013269,2]
[406696691,1772094553806,-500.0,0.00013269,2]
[406696692,1772094553829,-500.0,0.00013269,2]
[406696693,1772094553850,-500.0,0.00013269,2]
[406696694,1772094553874,-500.0,0.00013269,2]
[406696695,1772094553897,-500.0,0.00013269,2]
[406696696,1772094553920,-500.0,0.00013269,2]
[406696697,1772094553942,-500.0,0.00013269,2]
[406696698,1772094553967,-500.0,0.00013269,2]
[406696699,1772094553992,-500.0,0.00013269,2]
[406696700,1772094554015,-500.0,0.00013269,2]
[406696701,1772094554040,-291.39805508,0.00013269,2]
[406696702,1772094554062,-500.0,0.00013269,2]
[406696703,1772094554086,-500.0,0.00013269,2]
[406696704,1772094554118,-500.0,0.00013269,2]
[406696705,1772094554146,-500.0,0.00013269,2]
[406696706,1772094554173,-500.0,0.00013269,2]
[406696707,1772094554197,-500.0,0.00013269,2]
[406696708,1772094554224,-500.0,0.00013269,2]
[406696709,1772094554250,-500.0,0.00013269,2]
[406696710,1772094554277,-500.0,0.00013269,2]
[406696711,1772094554301,-500.0,0.00013269,2]
[406696712,1772094554325,-131.73158805,0.00013269,2]
[406696713,1772094554359,-112.36630593,0.00013269,2]
[406696714,1772094554392,-500.0,0.00013269,2]
[406696715,1772094554417,-178.18731352,0.00013269,2]
[406696716,1772094554444,-500.0,0.00013269,2]
[406696717,1772094554468,-500.0,0.00013269,2]
[406696718,1772094554494,-500.0,0.00013269,2]
[406696719,1772094554520,-500.0,0.00013269,2]
[406696720,1772094554545,-500.0,0.00013269,2]
[406696721,1772094554571,-500.0,0.00013269,2]
[406696722,1772094554596,-500.0,0.00013269,2]
[406696723,1772094554622,-500.0,0.00013269,2]
[406696724,1772094554650,-500.0,0.00013269,2]
[406696725,1772094554702,-500.0,0.00013269,2]
[406696726,1772094554749,-67.39834827,0.00013269,2]
[406696727,1772094565086,-432.60165173,0.00013269,2]
[406696728,1772094565112,-500.0,0.00013269,2]
[406696729,1772094565134,-500.0,0.00013269,2]
[406696730,1772094565157,-500.0,0.00013269,2]
[406696731,1772094565181,-483.52715864,0.00013269,2]
[406696732,1772094566284,-16.47284136,0.00013269,2]
[406696733,1772094566356,-500.0,0.00013269,2]
[406696734,1772094566423,-500.0,0.00013269,2]
[406696735,1772094566490,-500.0,0.00013269,2]
[406696736,1772094566556,-500.0,0.00013269,2]
[406696737,1772094566625,-500.0,0.00013269,2]
[406696738,1772094566697,-500.0,0.00013269,2]
[406696739,1772094566764,-500.0,0.00013269,2]
[406696740,1772094566833,-500.0,0.00013269,2]
[406696741,1772094566916,-500.0,0.00013269,2]
[406696742,1772094566986,-617.29210288,0.00013269,2]
[406696743,1772094567051,-500.0,0.00013269,2]
[406696744,1772094567118,-499.99999999,0.00013269,2]
[406696745,1772094567186,-499.99999999,0.00013269,2]
[406696746,1772094567255,-179.61181829,0.00013269,2]
[406696747,1772094567327,-499.99999999,0.00013269,2]
[406696748,1772094567392,-500.0,0.00013273,2]
[406696749,1772094567457,-500.0,0.00013273,2]
[406696750,1772094567528,-500.0,0.00013273,2]
[406696751,1772094567595,-500.0,0.00013273,2]
[406696752,1772094567663,-500.0,0.00013273,2]
[406696753,1772094567731,-547.82994991,0.00013273,2]
[406696754,1772094567797,-500.0,0.00013273,2]
[406696755,1772094567861,-500.0,0.00013273,2]
[406696756,1772094567930,-500.0,0.00013273,2]
[406696757,1772094567993,-500.0,0.00013273,2]
[406696758,1772094568058,-500.0,0.00013273,2]
[406696759,1772094568127,-500.0,0.00013273,2]
[406696760,1772094568190,-504.13667758,0.00013273,2]
[406696761,1772094568254,-500.0,0.00013273,2]
[406696762,1772094568319,-500.0,0.00013273,2]
[406696763,1772094568382,-500.0,0.00013273,2]
[406696764,1772094568445,-501.0020781,0.00013273,2]
[406696765,1772094568508,-500.0,0.00013273,2]
[406696766,1772094568753,-407.85449753,0.00013273,2]
[406696767,1772094568825,-168.57300407,0.00013273,2]
[406696768,1772094568898,-500.0,0.00013273,2]
[406696769,1772094568959,-573.12309028,0.00013273,2]
[406696770,1772094569030,-500.0,0.00013273,2]
[406696771,1772094569090,-500.0,0.00013273,2]
[406696772,1772094569156,-500.0,0.00013273,2]
[406696773,1772094569226,-7914.51239482,0.00013427,2]
[406696774,1772094569307,-151.0,0.00013527,2]
[406696775,1772094569375,-151.0,0.00013527,2]
[406696776,1772094569438,-151.0,0.00013527,2]
[406696777,1772094569516,-150.0,0.00013673,2]
[406696778,1772094569590,-300.0,0.00013673,2]
[406696779,1772094569655,-189.34748205,0.00013698,2]
[406696780,1772094569715,-500.0,0.00013698,2]
[406696781,1772094569788,-500.0,0.00013698,2]
[406696782,1772094569850,-364.48527496,0.00013698,2]
[406696783,1772094569911,-500.0,0.00013698,2]
[406696784,1772094569973,-622.99326903,0.00013698,2]
[406696785,1772094570037,-500.0,0.00013698,2]
[406696786,1772094570108,-500.0,0.00013698,2]
[406696787,1772094570176,-500.0,0.00013698,2]
[406696788,1772094570241,-2823.1975929,0.00013699,2]
[406696789,1772094570308,-500.0,0.00013699,2]
[406696790,1772094570371,-500.0,0.00013699,2]
[406696791,1772094570436,-500.20533029,0.00013699,2]
[406696792,1772094570503,-500.0,0.00013699,2]
[406696793,1772094570575,-500.0,0.00013699,2]
[406696794,1772094570642,-500.0,0.00013699,2]
[406696795,1772094570708,-500.0,0.00013699,2]
[406696796,1772094570769,-166.26417438,0.00013699,2]
[406696797,1772094570828,-500.0,0.00013699,2]
[406696798,1772094570888,-500.29625998,0.00013699,2]
[406696799,1772094570947,-500.0,0.00013699,2]
[406696800,1772094571006,-569.65079634,0.00013699,2]
[406696801,1772094571067,-500.0,0.00013699,2]
[406696802,1772094571126,-500.0,0.00013699,2]
[406696803,1772094571186,-592.53162647,0.00013699,2]
[406696804,1772094571248,-500.1978309,0.00013699,2]
[406696805,1772094571309,-244.75750508,0.00013699,2]
[406696806,1772094571368,-500.0,0.00013699,2]
[406696807,1772094571430,-500.0,0.00013699,2]
[406696808,1772094571493,-500.0,0.00013699,2]
[406696809,1772094571554,-500.0,0.00013699,2]
[406696810,1772094571618,-530.89313027,0.00013699,2]
[406696811,1772094571683,-199.61320858,0.00013699,2]
[406696812,1772094571747,-500.41406331,0.00013699,2]
[406696813,1772094571806,-500.0,0.00013699,2]
[406696814,1772094571867,-500.0,0.00013699,2]
[406696815,1772094571928,-500.0,0.00013699,2]
[406696816,1772094571991,-500.0,0.00013699,2]
[406696817,1772094572053,-500.0,0.00013699,2]
[406696818,1772094572121,-500.0,0.00013699,2]
[406696819,1772094572188,-500.0,0.00013699,2]
[406696820,1772094572259,-500.0,0.00013699,2]
[406696821,1772094572327,-500.0,0.00013699,2]
[406696822,1772094572388,-500.0,0.00013699,2]
[406696823,1772094572453,-500.0,0.00013699,2]
[406696824,1772094572516,-500.0,0.00013699,2]
[406696825,1772094572580,-500.0,0.00013699,2]
[406696826,1772094572647,-150.17622229,0.00013699,2]
[406696827,1772094572716,-500.0,0.00013699,2]
[406696828,1772094572795,-500.0,0.00013699,2]
[406696829,1772094572863,-500.0,0.00013699,2]
[406696830,1772094572926,-500.65490939,0.00013699,2]
[406696831,1772094573005,-500.0,0.00013699,2]
[406696832,1772094573085,-500.0,0.00013699,2]
[406696833,1772094573158,-500.0,0.00013699,2]
[406696834,1772094573230,-358.26389884,0.00013699,2]
[406696835,1772094573306,-500.0,0.00013699,2]
[406696836,1772094573373,-500.0,0.00013699,2]
[406696837,1772094573437,-506.8243523,0.00013699,2]
[406696838,1772094573513,-500.43635381,0.00013699,2]
[406696839,1772094573590,-500.0,0.00013699,2]
[406696840,1772094573658,-500.0,0.00013699,2]
[406696841,1772094573719,-500.0,0.00013699,2]
[406696842,1772094573795,-157.30345424,0.00013699,2]
[406696843,1772094573876,-500.0,0.00013699,2]
[406696844,1772094573936,-500.46554818,0.00013699,2]
[406696845,1772094573999,-528.57330899,0.00013699,2]
[406696846,1772094574059,-500.0,0.00013699,2]
[406696847,1772094574122,-500.0,0.00013699,2]
[406696848,1772094574184,-500.81329234,0.00013699,2]
[406696849,1772094574244,-500.0,0.00013699,2]
[406696850,1772094574304,-500.0,0.00013699,2]
[406696851,1772094574364,-500.0,0.00013699,2]
[406696852,1772094574428,-500.0,0.00013699,2]
[406696853,1772094574486,-533.66222105,0.00013699,2]
[406696854,1772094574547,-500.0,0.00013699,2]
[406696855,1772094574602,-500.0,0.00013699,2]
[406696856,1772094574666,-500.71834181,0.00013699,2]
[406696857,1772094574736,-547.06491265,0.00013699,2]
[406696858,1772094574809,-150.0,0.000137,2]
[406696859,1772094574871,-150.0,0.00013754,2]
[406696860,1772094574929,-392.0,0.00013756,2]
[406696861,1772094574990,-300.0,0.00013756,2]
[406696862,1772094575053,-420.0,0.00013756,2]
[406696863,1772094575115,-1680.0,0.00013792,2]
[406696864,1772094575182,-150.0,0.00013809,2]
[406696865,1772094575249,-1000.0,0.00013821,2]
[406696866,1772094575316,-1000.0,0.00013821,2]
[406696867,1772094575382,-508.03343224,0.00013821,2]
[406696868,1772094575446,-413.80928703,0.00013821,2]
[406696869,1772094575520,-1000.0,0.00013821,2]
[406696870,1772094575588,-1000.0,0.00013821,2]
[406696871,1772094575653,-1000.0,0.00013821,2]
[406696872,1772094575717,-1000.0,0.00013821,2]
[406696873,1772094575781,-1000.0,0.00013821,2]
[406696874,1772094575848,-1000.0,0.00013821,2]
[406696875,1772094575914,-1000.0,0.00013821,2]
[406696876,1772094575977,-1000.0,0.00013821,2]
[406696877,1772094576039,-1000.0,0.00013821,2]
[406696878,1772094576099,-1000.0,0.00013821,2]
[406696879,1772094576336,-1000.0,0.00013821,2]
[406696880,1772094576407,-1000.0,0.00013821,2]
[406696881,1772094576467,-782.4428527,0.00013821,2]
[406696882,1772094576526,-1000.0,0.00013821,2]
[406696883,1772094576586,-612.03122719,0.00013821,2]
[406696884,1772094576647,-250.62974222,0.00013864,2]
[406696885,1772094576708,-1070.15809674,0.00014064,2]
[406696886,1772094576773,-720.0,0.00014068,2]
[406696887,1772094576837,-1977.93414548,0.00014175,2]
[406696888,1772094576899,-1814.43860374,0.00014175,2]
[406696889,1772094576958,-150.0,0.000142,2]
[406696890,1772094577021,-204.8324539,0.00014221,2]
[406696891,1772094577095,-600.0,0.00014221,2]
[406696892,1772094577169,-500.0,0.00014246,2]
[406696893,1772094577236,-500.0,0.00014246,2]
[406696894,1772094577311,-500.0,0.00014246,2]
[406696895,1772094577386,-160.21927014,0.00014246,2]
[406696896,1772094577447,-1000.0,0.00014247,2]
[406696897,1772094577508,-1003.28675363,0.00014247,2]
[406696898,1772094577567,-1000.0,0.00014247,2]
[406696899,1772094577629,-156.76067845,0.00014247,2]
[406696900,1772094577689,-500.66341769,0.00014247,2]
[406696901,1772094577750,-760.42077953,0.00014247,2]
[406696902,1772094577810,-1000.0,0.00014247,2]
[406696903,1772094577870,-1000.0,0.00014247,2]
[406696904,1772094577928,-1000.0,0.00014247,2]
[406696905,1772094577987,-1004.19545126,0.00014247,2]
[406696906,1772094578047,-1000.0,0.00014247,2]
[406696907,1772094578110,-1001.75096863,0.00014247,2]
[406696908,1772094578173,-537.89070707,0.00014247,2]
[406696909,1772094578235,-502.64626154,0.00014247,2]
[406696910,1772094578298,-501.25178226,0.00014247,2]
[406696911,1772094578368,-539.825409,0.00014247,2]
[406696912,1772094578431,-1000.0,0.00014247,2]
[406696913,1772094578496,-1000.0,0.00014247,2]
[406696914,1772094578559,-360.91419843,0.00014247,2]
[406696915,1772094578622,-377.87767477,0.00014247,2]
[406696916,1772094578682,-501.37568957,0.00014247,2]
[406696917,1772094578742,-1000.0,0.00014247,2]
[406696918,1772094578803,-621.94832915,0.00014247,2]
[406696919,1772094578865,-1000.0,0.00014247,2]
[406696920,1772094578926,-995.55091514,0.00014247,2]
[406696921,1772094578984,-1082.69726098,0.00014247,2]
[406696922,1772094579041,-287.87743582,0.00014247,2]
[406696923,1772094579099,-471.72988038,0.00014247,2]
[406696924,1772094579158,-1000.0,0.00014247,2]